fUST/lending_fUST_20250220
["ID","MTS","AMOUNT","RATE_DAILY","PERIOD"]
[353658352,1739985040995,-500.0,0.0001378,2]
[353658353,1739985041006,-500.0,0.0001378,2]
[353658355,1739985041015,-500.0,0.0001378,2]
[353658357,1739985041025,-500.0,0.0001378,2]
[353658359,1739985041034,-500.0,0.0001378,2]
[353658361,1739985041043,-500.0,0.0001378,2]
[353658363,1739985041052,-500.0,0.0001378,2]
[353658365,1739985041061,-500.0,0.0001378,2]
[353658366,1739985041070,-500.96715317,0.0001378,2]
[353658368,1739985041080,-500.0,0.0001378,2]
[353658370,1739985041089,-500.0,0.0001378,2]
[353658372,1739985041098,-500.0,0.0001378,2]
[353658373,1739985041107,-500.0,0.0001378,2]
[353658374,1739985041117,-500.0,0.0001378,2]
[353658375,1739985041127,-594.05235689,0.0001378,2]
[353658376,1739985041137,-500.0,0.0001378,2]
[353658378,1739985041147,-500.0,0.0001378,2]
[353658380,1739985041156,-500.0,0.0001378,5]
[353658382,1739985041165,-500.0,0.0001378,2]
[353658384,1739985041173,-500.0,0.0001378,2]
[353658386,1739985041182,-500.0,0.0001378,2]
[353658388,1739985041191,-500.0,0.0001378,2]
[353658390,1739985041200,-500.0,0.0001378,2]
[353658392,1739985041209,-500.0,0.0001378,2]
[353658394,1739985041217,-500.0,0.0001378,2]
[353658396,1739985041226,-500.0,0.0001378,2]
[353658399,1739985041235,-500.0,0.0001378,2]
[353658402,1739985041246,-500.0,0.0001378,2]
[353658405,1739985041255,-500.0,0.0001378,2]
[353658408,1739985041263,-500.0,0.0001378,2]
[353658411,1739985041273,-500.0,0.0001378,2]
[353658414,1739985041282,-500.0,0.0001378,2]
[353658417,1739985041291,-204.89,0.0001378,2]
[353658420,1739985041300,-500.0,0.0001378,2]
[353658423,1739985041308,-500.0,0.0001378,2]
[353658426,1739985041319,-500.0,0.0001378,2]
[353658429,1739985041328,-517.10299737,0.0001378,2]
[353658431,1739985041337,-500.0,0.0001378,2]
[353658433,1739985041346,-500.0,0.0001378,2]
[353658436,1739985041356,-1212.2,0.0001378,2]
[353658439,1739985041365,-500.0,0.0001378,2]
[353658442,1739985041374,-500.31985881,0.0001378,2]
[353658445,1739985041383,-500.0,0.0001378,2]
[353658448,1739985041393,-500.0,0.0001378,2]
[353658451,1739985041402,-500.0,0.0001378,2]
[353658454,1739985041411,-500.0,0.0001378,2]
[353658457,1739985041421,-500.0,0.0001378,2]
[353658460,1739985041431,-297.87530231,0.0001378,2]
[353658463,1739985041444,-500.0,0.0001378,2]
[353658466,1739985041454,-3647.2,0.0001378,2]
[353658469,1739985041464,-501.22499922,0.0001378,2]
[353658472,1739985041474,-500.0,0.0001378,2]
[353658475,1739985041484,-500.0,0.0001378,2]
[353658479,1739985041494,-500.0,0.0001378,2]
[353658482,1739985041503,-500.0,0.0001378,2]
[353658485,1739985041512,-500.0,0.0001378,2]
[353658488,1739985041522,-356.1,0.0001378,2]
[353658491,1739985041533,-500.0,0.0001378,2]
[353658494,1739985041542,-500.0,0.0001378,2]
[353658497,1739985041552,-500.55644541,0.0001378,2]
[353658500,1739985041562,-500.0,0.0001378,2]
[353658503,1739985041572,-500.0,0.0001378,2]
[353658507,1739985041582,-500.0,0.0001378,2]
[353658510,1739985041592,-500.41103141,0.0001378,2]
[353658513,1739985041602,-324.71442361,0.0001378,2]
[353658516,1739985041612,-500.0,0.0001378,2]
[353658518,1739985041622,-501.01890943,0.0001378,2]
[353658521,1739985041631,-500.0,0.0001378,2]
[353658523,1739985041641,-500.0,0.0001378,2]
[353658526,1739985041650,-500.0,0.0001378,2]
[353658528,1739985041661,-202.09901912,0.0001378,2]
[353658531,1739985041670,-500.0,0.0001378,2]
[353658533,1739985041680,-500.55266328,0.0001378,2]
[353658535,1739985041691,-500.0,0.0001378,2]
[353658537,1739985041700,-618.63,0.0001378,2]
[353658539,1739985041710,-500.0,0.0001378,2]
[353658541,1739985041719,-266.71559082,0.0001378,2]
[353658543,1739985041729,-500.0,0.0001378,2]
[353658545,1739985041739,-500.0,0.0001378,2]
[353658547,1739985041748,-500.0,0.0001378,2]
[353658549,1739985041759,-264.97053944,0.0001378,2]
[353658551,1739985041768,-501.13048132,0.0001378,2]
[353658553,1739985041777,-500.0,0.0001378,2]
[353658555,1739985041787,-270.78,0.0001378,2]
[353658557,1739985041797,-500.0,0.0001378,2]
[353658559,1739985041806,-500.0,0.0001378,2]
[353658561,1739985041816,-584.48,0.0001378,2]
[353658563,1739985041825,-500.0,0.0001378,2]
[353658565,1739985041835,-443.84,0.0001378,2]
[353658567,1739985041844,-500.0,0.0001378,2]
[353658569,1739985041853,-500.0,0.0001378,2]
[353658571,1739985041862,-500.0,0.0001378,2]
[353658573,1739985041872,-741.88,0.0001378,2]
[353658575,1739985041881,-598.55,0.0001378,2]
[353658577,1739985041891,-500.0,0.0001378,2]
[353658579,1739985041900,-508.21310011,0.0001378,2]
[353658581,1739985041910,-500.0,0.0001378,2]
[353658583,1739985041919,-500.0,0.0001378,2]
[353658585,1739985041928,-861.96,0.0001378,2]
[353658587,1739985041937,-500.0,0.0001378,2]
[353658589,1739985041946,-500.0,0.0001378,2]
[353658591,1739985041955,-500.0,0.0001378,2]
[353658593,1739985041965,-500.0,0.0001378,2]
[353658595,1739985041974,-500.0,0.0001378,2]
[353658597,1739985041983,-500.0,0.0001378,2]
[353658598,1739985041992,-500.0,0.0001378,2]
[353658601,1739985042001,-500.0,0.0001378,2]
[353658602,1739985042011,-500.0,0.0001378,2]
[353658605,1739985042022,-500.0,0.0001378,2]
[353658607,1739985042032,-500.0,0.0001378,2]
[353658609,1739985042041,-500.0,0.0001378,2]
[353658611,1739985042051,-500.0,0.0001378,2]
[353658613,1739985042060,-500.0,0.0001378,2]
[353658615,1739985042069,-500.0,0.0001378,2]
[353658617,1739985042079,-500.0,0.0001378,2]
[353658619,1739985042089,-500.0,0.0001378,2]
[353658621,1739985042098,-631.63,0.0001378,2]
[353658623,1739985042107,-500.0,0.0001378,2]
[353658625,1739985042117,-500.0,0.0001378,2]
[353658627,1739985042126,-500.0,0.0001378,2]
[353658629,1739985042135,-500.0,0.0001378,2]
[353658631,1739985042144,-500.0,0.0001378,2]
[353658633,1739985042154,-500.0,0.0001378,2]
[353658635,1739985042164,-500.0,0.0001378,2]
[353658636,1739985042173,-500.0,0.0001378,2]
[353658638,1739985042183,-2152.7,0.0001378,2]
[353658640,1739985042192,-500.0,0.0001378,2]
[353658642,1739985042201,-496.17428323,0.0001378,2]
[353658644,1739985042211,-9916.33,0.0001378,2]
[353658646,1739985042220,-500.74797865,0.0001378,2]
[353658648,1739985042229,-500.0,0.0001378,2]
[353658650,1739985042239,-500.0,0.0001378,2]
[353658652,1739985042250,-500.0,0.0001378,2]
[353658655,1739985042260,-542.34,0.0001378,2]
[353658657,1739985042269,-500.0,0.0001378,2]
[353658659,1739985042278,-500.0,0.0001378,2]
[353658661,1739985042287,-500.0,0.0001378,2]
[353658663,1739985042296,-570.61488848,0.0001378,2]
[353658665,1739985042305,-500.0,0.0001378,2]
[353658667,1739985042314,-500.0,0.0001378,2]
[353658669,1739985042323,-500.0,0.0001378,2]
[353658671,1739985042332,-500.0,0.0001378,2]
[353658673,1739985042342,-208.12951823,0.0001378,2]
[353658674,1739985042351,-500.0,0.0001378,2]
[353658676,1739985042362,-500.0,0.0001378,2]
[353658678,1739985042371,-1037.51,0.0001378,2]
[353658691,1739985042452,-500.0,0.0001378,2]
[353658693,1739985042471,-422.11729911,0.0001378,2]
[353658695,1739985042480,-2148.1,0.0001378,2]
[353658697,1739985042490,-537.31904984,0.0001378,2]
[353658699,1739985042499,-490.31442462,0.00013825,2]
[353658701,1739985042508,-540.46,0.0001386,2]
[353658704,1739985042518,-501.18957131,0.0001386,2]
[353658706,1739985042527,-500.0,0.0001386,2]
[353658709,1739985042536,-500.0,0.0001386,2]
[353658711,1739985042545,-500.0,0.0001386,2]
[353658714,1739985042554,-500.0,0.0001386,2]
[353658716,1739985042563,-503.09169201,0.0001386,2]
[353658720,1739985042573,-500.0,0.0001386,2]
[353658724,1739985042582,-500.0,0.0001386,2]
[353658728,1739985042591,-500.0,0.0001386,2]
[353658731,1739985042601,-500.0,0.00013862,2]
[353658734,1739985042611,-342.54820576,0.00013862,2]
[353658737,1739985042621,-500.0,0.00013862,2]
[353658740,1739985042631,-665.59,0.00013862,2]
[353658743,1739985042641,-318.31,0.00013863,2]
[353658745,1739985042650,-352.31,0.00013863,2]
[353658747,1739985042659,-500.0,0.00013863,2]
[353658749,1739985042668,-500.0,0.00013863,2]
[353658752,1739985042677,-500.0,0.00013863,2]
[353658755,1739985042687,-216.04343766,0.00013863,2]
[353658758,1739985042697,-500.0,0.00013863,2]
[353658761,1739985042707,-500.0,0.00013863,2]
[353658764,1739985042716,-502.28397649,0.00013863,2]
[353658766,1739985042725,-500.0,0.00013863,2]
[353658768,1739985042735,-500.0,0.00013863,2]
[353658770,1739985042745,-320.9,0.00013863,2]
[353658772,1739985042754,-500.0,0.00013863,2]
[353658774,1739985042763,-230.77651089,0.00013863,2]
[353658776,1739985042772,-500.0,0.00013863,2]
[353658778,1739985042782,-500.0,0.00013863,2]
[353658780,1739985042791,-500.0,0.00013863,2]
[353658782,1739985042800,-500.0,0.00013863,2]
[353658784,1739985042810,-500.0,0.00013863,2]
[353658786,1739985042819,-500.0,0.00013863,2]
[353658788,1739985042829,-500.0,0.00013863,2]
[353658790,1739985042838,-500.0,0.00013863,2]
[353658792,1739985042847,-500.0,0.00013863,2]
[353658794,1739985042858,-500.0,0.00013863,2]
[353658796,1739985042867,-500.0,0.00013863,2]
[353658798,1739985042876,-503.43145638,0.00013863,2]
[353658800,1739985042886,-500.0,0.00013863,2]
[353658802,1739985042896,-500.0,0.00013863,2]
[353658804,1739985042906,-500.0,0.00013863,2]
[353658806,1739985042916,-500.0,0.00013863,2]
[353658808,1739985042926,-500.0,0.00013863,2]
[353658810,1739985042935,-500.0,0.00013863,2]
[353658812,1739985042944,-500.0,0.00013863,2]
[353658814,1739985042954,-500.0,0.00013863,2]
[353658816,1739985042963,-501.57901468,0.00013863,2]
[353658818,1739985042973,-501.85798957,0.00013863,2]
[353658820,1739985042983,-500.0,0.00013863,2]
[353658822,1739985042993,-500.0,0.00013863,2]
[353658824,1739985043003,-500.0,0.00013863,2]
[353658826,1739985043012,-500.0,0.00013863,2]
[353658828,1739985043022,-500.0,0.00013863,2]
[353658830,1739985043033,-500.0,0.00013863,2]
[353658832,1739985043042,-500.0,0.00013863,2]
[353658834,1739985043052,-500.0,0.00013863,2]
[353658836,1739985043061,-506.40631908,0.00013863,2]
[353658838,1739985043074,-500.0,0.00013863,2]
[353658840,1739985043083,-500.0,0.00013863,2]
[353658842,1739985043092,-377.93769502,0.00013863,2]
[353658844,1739985043101,-500.0,0.00013863,2]
[353658846,1739985043111,-500.0,0.00013863,2]
[353658848,1739985043121,-474.65837893,0.00013863,2]
[353658851,1739985043136,-500.0,0.00013863,2]
[353658855,1739985043153,-500.0,0.00013863,2]
[353658858,1739985043168,-500.0,0.00013863,2]
[353658863,1739985043184,-500.0,0.00013863,2]
[353658866,1739985043199,-500.0,0.00013863,2]
[353658870,1739985043216,-426.29,0.00013863,2]
[353658876,1739985043233,-500.0,0.00013863,2]
[353658880,1739985043249,-500.0,0.00013863,2]
[353658884,1739985043262,-500.0,0.00013863,2]
[353658888,1739985043277,-500.0,0.00013863,2]
[353658893,1739985043293,-500.0,0.00013863,2]
[353658896,1739985043307,-816.1,0.00013863,2]
[353658898,1739985043320,-500.0,0.00013863,2]
[353658901,1739985043335,-500.0,0.00013863,2]
[353658903,1739985043349,-500.0,0.00013863,2]
[353658906,1739985043366,-500.0,0.00013863,2]
[353658910,1739985043383,-500.0,0.00013863,2]
[353658913,1739985043401,-501.19130057,0.00013863,2]
[353658915,1739985043412,-500.0,0.00013863,2]
[353658917,1739985043423,-500.0,0.00013863,2]
[353658920,1739985043440,-500.0,0.00013863,2]
[353658922,1739985043456,-500.0,0.00013863,2]
[353658925,1739985043467,-500.0,0.00013863,2]
[353658927,1739985043480,-500.0,0.00013863,2]
[353658930,1739985043493,-500.0,0.00013863,2]
[353658932,1739985043504,-336.25262412,0.00013863,2]
[353658934,1739985043516,-500.0,0.00013863,2]
[353658937,1739985043528,-500.0,0.00013863,2]
[353658939,1739985043540,-500.0,0.00013863,2]
[353658941,1739985043552,-500.0,0.00013863,2]
[353658944,1739985043564,-500.0,0.00013863,2]
[353658946,1739985043576,-500.0,0.00013863,2]
[353658948,1739985043588,-500.0,0.00013863,2]
[353658951,1739985043601,-500.0,0.00013863,5]
[353658953,1739985043613,-500.0,0.00013863,2]
[353658956,1739985043626,-500.0,0.00013863,2]
[353658958,1739985043639,-500.0,0.00013863,2]
[353658960,1739985043651,-508.8795629,0.00013863,2]
[353658963,1739985043664,-500.0,0.00013863,2]
[353658965,1739985043676,-500.0,0.00013863,2]
[353658967,1739985043688,-500.0,0.00013863,2]
[353658969,1739985043700,-500.0,0.00013863,2]
[353658971,1739985043712,-500.0,0.00013863,2]
[353658974,1739985043725,-500.0,0.00013863,2]
[353658976,1739985043738,-500.0,0.00013863,2]
[353658978,1739985043751,-500.0,0.00013863,2]
[353658981,1739985043764,-500.0,0.00013863,2]
[353658983,1739985043777,-500.0,0.00013863,2]
[353658986,1739985043790,-500.0,0.00013863,2]
[353658988,1739985043803,-1212.2,0.00013863,2]
[353658990,1739985043814,-503.74444899,0.00013863,2]
[353658993,1739985043828,-500.0,0.00013863,2]
[353658995,1739985043841,-500.0,0.00013863,2]
[353658997,1739985043852,-500.0,0.00013863,2]
[353658999,1739985043862,-507.15875487,0.00013863,2]
[353659001,1739985043872,-500.0,0.00013863,2]
[353659003,1739985043882,-3647.2,0.00013863,2]
[353659005,1739985043891,-500.0,0.00013863,2]
[353659007,1739985043902,-500.0,0.00013863,2]
[353659010,1739985043912,-500.0,0.00013863,2]
[353659012,1739985043921,-500.0,0.00013863,2]
[353659014,1739985043931,-500.0,0.00013863,2]
[353659016,1739985043940,-171.19,0.00013863,2]
[353659018,1739985043950,-500.0,0.00013863,2]
[353659020,1739985043960,-500.0,0.00013863,2]
[353659022,1739985043969,-500.0,0.00013863,2]
[353659024,1739985043980,-500.0,0.00013863,2]
[353659040,1739985044090,-236.3,0.00013863,2]
[353659043,1739985044145,-500.0,0.00013863,2]
[353659046,1739985044156,-202.58845176,0.00013863,2]
[353659047,1739985044166,-500.0,0.00013863,2]
[353659049,1739985044175,-615.97,0.00013863,2]
[353659051,1739985044184,-500.0,0.00013863,2]
[353659053,1739985044194,-584.48,0.00013863,2]
[353659055,1739985044203,-500.0,0.00013863,2]
[353659057,1739985044213,-500.0,0.00013863,2]
[353659059,1739985044222,-741.88,0.00013863,2]
[353659061,1739985044231,-598.55,0.00013863,2]
[353659063,1739985044241,-280.75,0.00013863,2]
[353659065,1739985044250,-500.0,0.00013863,2]
[353659067,1739985044260,-861.96,0.00013863,2]
[353659069,1739985044269,-543.82,0.00013863,2]
[353659071,1739985044278,-500.0,0.00013863,2]
[353659073,1739985044287,-500.0,0.00013863,2]
[353659075,1739985044296,-500.0,0.00013863,2]
[353659077,1739985044305,-157.9,0.00013863,2]
[353659079,1739985044315,-500.0,0.00013863,2]
[353659081,1739985044323,-500.79973855,0.00013863,2]
[353659083,1739985044332,-500.0,0.00013863,2]
[353659085,1739985044341,-500.0,0.00013863,2]
[353659087,1739985044350,-501.48012489,0.00013863,2]
[353659089,1739985044360,-500.0,0.00013863,2]
[353659091,1739985044370,-500.0,0.00013863,2]
[353659093,1739985044380,-2152.7,0.00013863,2]
[353659095,1739985044389,-9916.33,0.00013863,2]
[353659097,1739985044399,-278.49,0.00013863,2]
[353659099,1739985044408,-326.46,0.00013863,2]
[353659101,1739985044417,-500.0,0.00013863,2]
[353659103,1739985044425,-542.34,0.00013863,2]
[353659105,1739985044434,-232.49,0.00013863,2]
[353659108,1739985044448,-500.0,0.00013863,2]
[353659110,1739985044457,-500.0,0.00013863,2]
[353659112,1739985044466,-500.0,0.00013863,2]
[353659114,1739985044475,-500.0,0.00013863,2]
[353659116,1739985044484,-1037.51,0.00013863,2]
[353659118,1739985044493,-2148.1,0.00013863,2]
[353659120,1739985044502,-548.61166477,0.00013896,2]
[353659122,1739985044512,-503.15422804,0.00013943,2]
[353659123,1739985044521,-500.0,0.00013943,2]
[353659125,1739985044531,-500.0,0.00013943,2]
[353659127,1739985044540,-500.0,0.00013943,2]
[353659129,1739985044550,-500.0,0.00013943,2]
[353659131,1739985044559,-500.0,0.00013944,2]
[353659133,1739985044568,-500.0,0.00013944,2]
[353659135,1739985044577,-665.59,0.00013944,2]
[353659138,1739985044588,-500.0,0.00013945,2]
[353659140,1739985044598,-281.78678542,0.00013945,2]
[353659142,1739985044607,-500.0,0.00013945,2]
[353659144,1739985044616,-500.0,0.00013945,2]
[353659146,1739985044626,-500.0,0.00013945,2]
[353659148,1739985044635,-500.0,0.00013945,2]
[353659150,1739985044644,-500.0,0.00013945,2]
[353659152,1739985044653,-500.0,0.00013945,2]
[353659154,1739985044662,-503.79868617,0.00013945,2]
[353659156,1739985044671,-500.0,0.00013945,2]
[353659158,1739985044680,-500.0,0.00013945,2]
[353659160,1739985044689,-500.0,0.00013945,2]
[353659162,1739985044698,-500.0,0.00013945,2]
[353659164,1739985044707,-500.0,0.00013945,2]
[353659166,1739985044716,-500.0,0.00013945,2]
[353659168,1739985044726,-500.0,0.00013945,2]
[353659170,1739985044736,-500.0,0.00013945,2]
[353659172,1739985044745,-500.0,0.00013945,2]
[353659174,1739985044753,-503.11243424,0.00013945,2]
[353659176,1739985044762,-502.43131329,0.00013945,2]
[353659178,1739985044770,-500.0,0.00013945,2]
[353659180,1739985044780,-501.93634187,0.00013945,2]
[353659181,1739985044789,-500.0,0.00013945,2]
[353659184,1739985044799,-500.0,0.00013945,2]
[353659186,1739985044808,-500.98362518,0.00013945,2]
[353659188,1739985044817,-500.0,0.00013945,2]
[353659189,1739985044827,-500.0,0.00013945,2]
[353659191,1739985044836,-500.0,0.00013945,2]
[353659193,1739985044846,-500.0,0.00013945,2]
[353659195,1739985044855,-503.25407185,0.00013945,2]
[353659197,1739985044865,-502.0355659,0.00013945,2]
[353659199,1739985044874,-500.0,0.00013945,2]
[353659202,1739985044883,-500.0,0.00013945,2]
[353659203,1739985044893,-500.0,0.00013945,2]
[353659205,1739985044902,-816.1,0.00013945,2]
[353659207,1739985044911,-500.0,0.00013945,2]
[353659209,1739985044920,-500.0,0.00013945,2]
[353659211,1739985044929,-500.0,0.00013945,2]
[353659213,1739985044939,-500.0,0.00013945,2]
[353659215,1739985044948,-500.0,0.00013945,2]
[353659217,1739985044957,-500.0,0.00013945,2]
[353659219,1739985044967,-500.0,0.00013945,2]
[353659221,1739985044977,-500.0,0.00013945,2]
[353659223,1739985044987,-500.0,0.00013945,2]
[353659225,1739985044996,-500.0,0.00013945,2]
[353659227,1739985045005,-500.0,0.00013945,2]
[353659229,1739985045014,-500.0,0.00013945,2]
[353659231,1739985045024,-500.0,0.00013945,2]
[353659233,1739985045034,-500.0,0.00013945,2]
[353659235,1739985045043,-500.0,0.00013945,2]
[353659237,1739985045053,-500.0,0.00013945,2]
[353659239,1739985045062,-500.0,0.00013945,2]
[353659241,1739985045072,-500.0,0.00013945,2]
[353659243,1739985045083,-1212.2,0.00013945,2]
[353659245,1739985045092,-623.55835108,0.00013945,2]
[353659247,1739985045101,-3647.2,0.00013945,2]
[353659249,1739985045110,-500.0,0.00013945,2]
[353659251,1739985045119,-500.0,0.00013945,2]
[353659253,1739985045129,-500.0,0.00013945,2]
[353659255,1739985045138,-500.0,0.00013945,2]
[353659257,1739985045147,-500.0,0.00013945,2]
[353659258,1739985045155,-584.48,0.00013945,2]
[353659260,1739985045164,-469.35,0.00013945,2]
[353659262,1739985045174,-500.0,0.00013945,2]
[353659263,1739985045183,-741.88,0.00013945,2]
[353659264,1739985045191,-598.55,0.00013945,2]
[353659265,1739985045200,-861.96,0.00013945,2]
[353659266,1739985045208,-500.0,0.00013945,2]
[353659267,1739985045217,-500.0,0.00013945,2]
[353659268,1739985045230,-500.0,0.00013945,2]
[353659269,1739985045238,-598.53397717,0.00013945,2]
[353659270,1739985045247,-500.0,0.00013945,2]
[353659271,1739985045256,-2152.7,0.00013945,2]
[353659272,1739985045264,-9916.33,0.00013945,2]
[353659273,1739985045273,-500.0,0.00013945,2]
[353659274,1739985045283,-542.34,0.00013945,2]
[353659275,1739985045291,-593.97,0.00013945,2]
[353659276,1739985045300,-500.0,0.00013945,2]
[353659277,1739985045309,-500.0,0.00013945,2]
[353659278,1739985045317,-1037.51,0.00013945,2]
[353659279,1739985045327,-2148.1,0.00013945,2]
[353659280,1739985045335,-1000.0,0.00014,2]
[353659281,1739985045343,-497.16113053,0.00014025,2]
[353659282,1739985045351,-201.08444651,0.00014025,2]
[353659283,1739985045361,-500.0,0.00014025,2]
[353659284,1739985045370,-500.0,0.00014025,2]
[353659286,1739985045380,-500.0,0.00014026,2]
[353659288,1739985045389,-665.59,0.00014026,2]
[353659290,1739985045399,-551.04,0.00014027,2]
[353659292,1739985045408,-528.01,0.00014027,2]
[353659294,1739985045417,-500.0,0.00014027,2]
[353659296,1739985045428,-500.0,0.00014027,2]
[353659298,1739985045438,-500.0,0.00014027,2]
[353659300,1739985045450,-500.0,0.00014027,2]
[353659303,1739985045459,-500.0,0.00014027,2]
[353659305,1739985045468,-500.0,0.00014027,2]
[353659308,1739985045478,-500.0,0.00014027,2]
[353659311,1739985045488,-500.0,0.00014027,2]
[353659313,1739985045498,-500.0,0.00014027,2]
[353659316,1739985045507,-500.0,0.00014027,2]
[353659320,1739985045517,-500.0,0.00014027,2]
[353659322,1739985045527,-500.0,0.00014027,2]
[353659324,1739985045537,-500.0,0.00014027,2]
[353659326,1739985045547,-160.54,0.00014027,2]
[353659328,1739985045557,-500.0,0.00014027,2]
[353659330,1739985045567,-500.0,0.00014027,2]
[353659332,1739985045576,-500.0,0.00014027,2]
[353659334,1739985045586,-500.96566589,0.00014027,2]
[353659336,1739985045595,-816.1,0.00014027,2]
[353659338,1739985045604,-500.0,0.00014027,2]
[353659340,1739985045614,-323.69100684,0.00014027,2]
[353659342,1739985045623,-500.0,0.00014027,2]
[353659344,1739985045632,-500.0,0.00014027,2]
[353659346,1739985045642,-500.0,0.00014027,2]
[353659348,1739985045652,-500.0,0.00014027,2]
[353659350,1739985045661,-214.39789205,0.00014027,2]
[353659351,1739985045671,-500.0,0.00014027,2]
[353659353,1739985045681,-500.0,0.00014027,2]
[353659355,1739985045690,-500.0,0.00014027,2]
[353659357,1739985045699,-500.0,0.00014027,2]
[353659359,1739985045709,-500.0,0.00014027,2]
[353659361,1739985045718,-500.0,0.00014027,2]
[353659363,1739985045728,-500.0,0.00014027,2]
[353659365,1739985045738,-1212.2,0.00014027,2]
[353659367,1739985045748,-3647.2,0.00014027,2]
[353659369,1739985045757,-500.0,0.00014027,2]
[353659371,1739985045767,-500.0,0.00014027,2]
[353659373,1739985045776,-500.0,0.00014027,2]
[353659375,1739985045785,-523.89,0.00014027,2]
[353659377,1739985045795,-500.0,0.00014027,2]
[353659379,1739985045804,-584.48,0.00014027,2]
[353659381,1739985045814,-500.0,0.00014027,2]
[353659383,1739985045823,-741.88,0.00014027,2]
[353659385,1739985045833,-598.55,0.00014027,2]
[353659387,1739985045842,-861.96,0.00014027,2]
[353659389,1739985045852,-500.0,0.00014027,2]
[353659391,1739985045861,-500.0,0.00014027,2]
[353659393,1739985045871,-500.0,0.00014027,2]
[353659395,1739985045881,-500.0,0.00014027,2]
[353659397,1739985045890,-2152.7,0.00014027,2]
[353659399,1739985045899,-9916.33,0.00014027,2]
[353659401,1739985045908,-500.0,0.00014027,2]
[353659403,1739985045918,-542.34,0.00014027,2]
[353659405,1739985045928,-500.0,0.00014027,2]
[353659407,1739985045937,-500.0,0.00014027,2]
[353659409,1739985045947,-1037.51,0.00014027,2]
[353659411,1739985045957,-2148.1,0.00014027,2]
[353659413,1739985045966,-151.0,0.000141,2]
[353659415,1739985045976,-500.0,0.00014107,2]
[353659417,1739985045985,-500.0,0.00014107,2]
[353659419,1739985045995,-500.0,0.00014108,2]
[353659421,1739985046004,-665.59,0.00014108,2]
[353659423,1739985046013,-560.78,0.00014109,2]
[353659425,1739985046022,-500.0,0.00014109,2]
[353659427,1739985046031,-153.86,0.00014109,2]
[353659429,1739985046040,-348.47,0.00014109,2]
[353659431,1739985046050,-500.0,0.00014109,2]
[353659433,1739985046059,-500.0,0.00014109,2]
[353659435,1739985046068,-500.0,0.00014109,2]
[353659437,1739985046077,-166.59,0.00014109,2]
[353659439,1739985046087,-500.0,0.00014109,2]
[353659441,1739985046096,-445.99,0.00014109,2]
[353659443,1739985046105,-207.33024915,0.00014109,2]
[353659445,1739985046115,-500.0,0.00014109,2]
[353659447,1739985046124,-816.1,0.00014109,2]
[353659449,1739985046134,-500.0,0.00014109,2]
[353659451,1739985046143,-259.8,0.00014109,2]
[353659453,1739985046152,-500.0,0.00014109,2]
[353659455,1739985046162,-500.0,0.00014109,2]